Cogmind - Beta 10.2 *** ADVENTURER MODE // 2021.07.01 @ 18:52:39 Player: MEOWRTGM Result: Destroyed by H-88 Terminator with KE Penetrator Performance ------------- Evolutions (9) 4500 Regions Visited (17) 3400 Robots Destroyed (374) 1870 Value Destroyed (19134) 19134 Prototype IDs (12) 240 Alien Tech Used (0) 0 Bonus (6929) 6929 TOTAL SCORE: 36073 Bonus ------- High Alert Combat Kills 6862 Follower Combat Kills 257 Friendly Fire -190 Cogmind --------- Core Integrity 0/1600 Matter 220/300 Energy 7/100 System Corruption 10% Temperature Cool (2) Movement Hovering (70) Location -1/Access Parts ------- > --- POWER (3) -------- (None) > --- PROPULSION (6) --- Improved Gyrokinetic Inverter > --- UTILITY (10) ----- Advanced Signal Interpreter Advanced Target Analyzer Advanced Core Analyzer > --- WEAPON (6) ------- (None) > --- INVENTORY (4) ---- Quantum Reactor Centrium Leg Gyrokinetic Inverter High-capacity Matter Pod (200) Peak State ------------ > --- POWER ------------ Micro Fission Core Light Particle Reactor Light Quantum Reactor > --- PROPULSION ------- Armored Heavy Treads Biometal Heavy Treads Biometal Heavy Treads > --- UTILITY ---------- Advanced Cryofiber Web Advanced Heat Sink Advanced Cooling System High-capacity Storage Unit Advanced Targeting Computer Advanced Target Analyzer Heavy Insulated Plating Corruption Screen Improved Field Recycling Unit > --- WEAPON ----------- Gamma Rifle Matter Neutralizer Matter Neutralizer Heavy Machine Gun Railgun Fusion Bomb Launcher > --- INVENTORY -------- Micro Fission Core Light Antimatter Reactor Heavy Treads Biometal Heavy Treads High-capacity Matter Pod Improved Arc Projector Fusion Bomb Launcher Fusion Bomb Launcher Power Sword [Rating: 175] Favorites ----------- Power Reinforced Deuterium Engine Engine Reinforced Deuterium Engine Power Core Micro Fission Core Reactor Light Particle Reactor Propulsion Armored Treads Treads Armored Treads Leg Aluminum Leg Hover Unit Improved Gyrokinetic Inverter Utility High-capacity Storage Unit Device Advanced Heat Sink Storage High-capacity Storage Unit Processor Advanced Targeting Computer Protection Hardened Medium Armor Plating Weapon Gauss Rifle Energy Gun Gamma Rifle Energy Cannon Matter Neutralizer Ballistic Gun Gauss Rifle Ballistic Cannon Heavy Flak Cannon Launcher Fusion Bomb Launcher Special Weapon Stasis Beam Impact Weapon Shock Maul Slashing Weapon Power Sword Build | -11 -10 -10 -9 -9 -8 -7 -6 -5 -4 -4 -4 -4 -4 -3 -3 -2 -1 ------- Run | Scr Mat Min Mat Sto Mat Fac Fac Fac Fac Ext Cet Arc Hub Res Arm Res Acc Slots Evolved 18 | . . . 2 . 2 2 2 2 2 . . . . 2 . 2 2 Power 2 | . . . . . . . . . . . . . . 1 . 1 . Propulsion 4 | . . . 1 . . 1 . 1 1 . . . . . . . . Utility 8 | . . . 1 . 1 . 1 1 1 . . . . 1 . 1 1 Weapon 4 | . . . . . 1 1 1 . . . . . . . . . 1 Parts Attached 240 | 6 2 1 10 10 15 13 26 13 2 11 6 4 7 14 50 17 33 Power 29 | 1 . . 1 3 . 1 2 . . . 1 . . 3 8 3 6 Engine 8 | 1 . . 1 3 . 1 2 . . . . . . . . . . Core 4 | . . . . . . . . . . . . . . 1 1 . 2 Reactor 17 | . . . . . . . . . . . 1 . . 2 7 3 4 Propulsion 63 | 2 . . 5 3 5 5 9 3 1 2 2 2 2 2 9 . 11 Treads 37 | . . . . . . 3 5 3 1 2 . 2 2 2 9 . 8 Leg 23 | 2 . . 5 3 5 2 4 . . . 2 . . . . . . Wheel . | . . . . . . . . . . . . . . . . . . Hover 3 | . . . . . . . . . . . . . . . . . 3 Flight . | . . . . . . . . . . . . . . . . . . Utility 55 | 1 1 . 2 1 6 3 7 4 1 5 1 . 2 5 8 4 4 Device 26 | . 1 . 1 . 2 . 2 1 1 3 1 . 1 2 6 3 2 Storage 9 | 1 . . . . 2 1 3 . . 1 . . . 1 . . . Processor 10 | . . . . . 1 1 2 2 . . . . 1 1 . . 2 Hackware . | . . . . . . . . . . . . . . . . . . Protection 10 | . . . 1 1 1 1 . 1 . 1 . . . 1 2 1 . Artifact . | . . . . . . . . . . . . . . . . . . Weapon 93 | 2 1 1 2 3 4 4 8 6 . 4 2 2 3 4 25 10 12 Energy Gun 21 | 1 . . . . . . . . . . . . 1 2 9 4 4 Energy Cannon 9 | . . . . . . . . . . . . 1 . . 5 2 1 Ballistic Gun 45 | 1 . 1 2 3 3 4 6 5 . 1 2 1 2 2 8 2 2 Ballistic Cannon 6 | . 1 . . . 1 . 2 . . 1 . . . . 1 . . Launcher 6 | . . . . . . . . 1 . 2 . . . . . 1 2 Special Weapon 2 | . . . . . . . . . . . . . . . . . 2 Impact Weapon 1 | . . . . . . . . . . . . . . . . 1 . Slashing Weapon 3 | . . . . . . . . . . . . . . . 2 . 1 Piercing Weapon . | . . . . . . . . . . . . . . . . . . Special Melee Weapon . | . . . . . . . . . . . . . . . . . . Unidentified Prototypes 13 | . . . . 2 . . . 1 . . 1 . . 2 5 2 . Parts Lost 85 | . . . . . 3 1 1 . . 8 2 5 2 . 22 2 39 Power 11 | . . . . . . . . . . . . . . . 3 . 8 Propulsion 16 | . . . . . 1 . . . . 2 . 2 1 . 3 . 7 Utility 22 | . . . . . 1 1 1 . . 2 1 . . . 6 2 8 Weapon 36 | . . . . . 1 . . . . 4 1 3 1 . 10 . 16 Highest Loss Streak 20 | . . . . . 2 1 1 . . 8 2 5 1 . 11 2 20 Average Slot Usage (%) 88 | . 89 100 92 100 97 91 97 99 96 95 92 93 93 91 79 80 59 Engine 3 | . 14 14 11 11 9 7 6 5 5 5 3 . . . . . . Reactor 3 | . . . . . . . . . . . 1 5 5 4 8 7 4 Treads 15 | . . . . . . 2 20 29 28 27 21 19 19 20 13 13 8 Leg 6 | . 28 28 29 33 26 22 5 . . . 3 10 8 . . . . Device 12 | . 4 14 11 11 16 1 5 8 15 15 17 21 21 19 17 14 13 Storage 5 | . 14 14 11 11 9 7 6 5 5 5 5 5 5 4 4 4 2 Processor 9 | . . . . . . 9 15 13 10 10 10 10 10 9 9 8 10 Protection 3 | . . . 7 11 9 9 2 4 5 4 2 . . 3 2 5 . Energy Gun 1 | . 4 . . . . . . . . . . . 2 3 4 3 2 Energy Cannon 1 | . . . . . . . . . . . . 3 5 3 1 9 3 Ballistic Gun 16 | . 14 14 11 20 25 24 28 22 21 18 15 7 5 9 10 4 5 Ballistic Cannon 3 | . 9 14 11 1 . 5 3 5 5 4 5 5 5 4 2 . . Naked Turns . | . . . . . . . . . . . . . . . . . . Heaviest Build 151 | 12 14 14 19 22 39 44 81 92 93 93 94 91 95 104 115 135 151 Greatest Support 225 | 20 20 20 30 30 45 62 90 129 156 156 104 110 183 215 225 210 225 Greatest Overweight (x) 30 | . . . . . 1 1 2 . . 30 . 1 1 . . . 1 Average Overweight (x) . | . . . . . . . . . . . . . . . . . . Largest Inventory Capacity 12 | 6 6 6 6 6 10 10 12 12 12 12 12 12 12 12 12 12 12 Average Capacity 10 | 5 6 6 6 6 7 10 11 12 12 12 12 12 12 12 12 12 9 Most Carried 12 | 4 5 6 6 6 8 10 12 12 11 11 12 12 12 12 12 12 12 Average Carried 9 | 2 3 5 5 5 6 9 10 10 10 9 10 10 11 11 10 10 8 Final Capacity 12 | 6 6 6 6 6 10 10 12 12 12 12 12 12 12 12 12 12 4 Final Carried 12 | 2 5 6 6 6 6 10 11 12 10 10 11 10 12 12 8 12 4 Class Distribution -------------------- 48% | Gunner 26% | Scavenger-Gunner 8% | Scavenger-Mutant 6% | Mutant 4% | Scavenger-Tank 4% | Scavenger-Executioner Dominant Class ---------------- Mutant | -10/Materials Mutant | -10/Mines Scavenger-Mutant | -9/Materials Scavenger-Mutant | -9/Storage Scavenger-Tank | -8/Materials Gunner | -7/Factory Gunner | -6/Factory Gunner | -5/Factory Gunner | -4/Factory Scavenger-Gunner | -4/Extension Scavenger-Gunner | -4/Cetus Scavenger-Gunner | -4/Archives Scavenger-Gunner | -4/Hub_04(d) Scavenger-Gunner | -3/Research Gunner | -3/Armory Scavenger-Gunner | -2/Research Scavenger-Executioner | -1/Access Resources | -11 -10 -10 -9 -9 -8 -7 -6 -5 -4 -4 -4 -4 -4 -3 -3 -2 -1 ----------- Run | Scr Mat Min Mat Sto Mat Fac Fac Fac Fac Ext Cet Arc Hub Res Arm Res Acc Matter Collected 11479 | 195 88 96 468 552 741 225 2126 969 126 829 412 239 225 299 2960 350 579 Remotely 1880 | . . 96 468 552 741 23 . . . . . . . . . . . Salvage Created 19959 | . 129 96 498 804 1258 456 2912 1287 158 1065 617 239 451 341 7041 954 1653 Parts 879 | . 9 7 35 53 62 29 119 54 9 42 21 8 21 6 301 43 60 Haulers Intercepted 15 | . . . . 2 3 2 3 . . 2 . . 1 1 . . 1 Recyclers Shooed 6 | . . . . 1 . . 2 1 . 1 . . . . . 1 . Parts Field Recycled . | . . . . . . . . . . . . . . . . . . Retrieved Matter . | . . . . . . . . . . . . . . . . . . Parts Self-Destructed . | . . . . . . . . . . . . . . . . . . Prevented . | . . . . . . . . . . . . . . . . . . Kills | -11 -10 -10 -9 -9 -8 -7 -6 -5 -4 -4 -4 -4 -4 -3 -3 -2 -1 ------- Run | Scr Mat Min Mat Sto Mat Fac Fac Fac Fac Ext Cet Arc Hub Res Arm Res Acc Combat Hostiles Destroyed 296 | . 3 4 10 14 16 9 36 21 2 12 9 4 4 4 99 19 30 Melee 5 | . . . . . . . 1 . . . . . . . 4 . . Guns 190 | . 3 1 4 11 16 9 27 16 2 8 4 4 2 2 68 5 8 Cannons 73 | . . 3 6 3 . . 8 4 . 1 2 . 2 2 25 13 4 AOE 25 | . . . . . . . . 1 . 3 3 . . . 1 . 17 Classes Destroyed 20 | . 2 1 3 1 4 2 1 . . . 1 . . . 4 . 1 Worker 17 | . . . 1 . 3 . 5 1 . 5 . . . . . . 2 Builder 5 | . . . . . 1 . 1 . . 2 . . . . . 1 . Hauler 15 | . . . . 2 3 2 3 . . 2 . . 1 1 . . 1 Recycler 15 | . 1 . 1 1 3 . 5 . . 1 . . 1 . . 1 1 Carrier 2 | . . . . . . . . . . . 1 . . . 1 . . Mechanic 1 | . . . . . . . . . . . . . . . . . 1 Operator 2 | . . . . . 1 . . 1 . . . . . . . . . Watcher 20 | . . . 1 2 2 . 1 2 1 1 1 . 1 . 5 3 . Swarmer 44 | . 3 2 . 2 3 3 3 5 . 3 . . . . 5 8 7 Saboteur 3 | . . . . . . . . . . . . . . . 3 . . Grunt 100 | . . 2 6 4 8 3 18 10 1 2 3 . 2 . 33 . 8 Brawler 14 | . . . . . 1 . 1 1 . 3 . . . . 6 . 2 Duelist 11 | . . . . . . 1 1 . . . . . . . 8 . 1 Protector 4 | . . . . . . . . . . . . . . . 3 . 1 Sentry 46 | . . . 4 8 2 1 6 2 . 2 . 4 . 2 10 2 3 Demolisher 1 | . . . . . . . . . . . . . . . 1 . . Specialist 6 | . . . . . . . . . . . . . . . 6 . . Hunter 20 | . . . . . 2 . 1 . . . 2 . . 2 6 5 2 Programmer 40 | . . . . . . 1 5 3 1 1 . . 2 . 17 4 6 Behemoth 3 | . . . . . . . 1 . . 1 . . . . 1 . . Cetus Guard 4 | . . . . . . . . . . . 4 . . . . . . Guerrilla 1 | . . . . . . . . . . 1 . . . . . . . Best Kill Streak 11 | . 3 4 6 8 9 3 8 6 1 6 6 3 3 2 11 5 11 Combat Bots Only 9 | . 3 4 4 6 5 3 4 5 1 3 5 3 2 2 9 5 9 Max Kills in Single Turn 4 | . 1 1 1 2 2 1 2 2 1 4 3 1 1 2 2 2 4 Gunslinging 1 | . . . . 1 . . . . . . . . . . 1 . . Exploded 3 | . . . . . . . . 1 . 1 2 . . . 1 . 3 Melee 1 | . . . . . . . 1 . . . . . . . 1 . . Uniques/NPCs Destroyed . | . . . . . . . . . . . . . . . . . . Combat | -11 -10 -10 -9 -9 -8 -7 -6 -5 -4 -4 -4 -4 -4 -3 -3 -2 -1 -------- Run | Scr Mat Min Mat Sto Mat Fac Fac Fac Fac Ext Cet Arc Hub Res Arm Res Acc Damage Taken 27939 | . 113 125 395 372 733 366 1421 795 265 2315 510 444 500 200 8816 1572 8997 Core 3387 | . 13 12 67 61 79 16 131 67 7 510 20 21 56 36 606 85 1600 Absorbed by Shields 1573 | . . . . . . . 936 419 77 141 . . . . . . . Reduced by Siege Mode 444 | . . . . . . . . . . . . . . . 444 . . Core Remaining (%) 80 | 100 . 90 . 68 85 97 84 93 . . . . 46 . 50 94 . Volleys Fired 625 | . 11 12 28 71 56 22 75 37 8 34 11 13 11 8 159 36 33 Largest 6 | . 2 2 2 2 3 4 5 5 5 5 5 4 4 5 5 5 6 Hottest 456 | . 70 55 58 58 82 110 172 179 179 191 198 193 258 298 372 456 402 Shots Fired 2371 | . 22 24 56 142 166 88 372 181 40 149 49 47 42 40 659 150 144 Gun 1784 | . 19 12 28 129 160 68 314 144 32 114 33 35 20 24 491 65 96 Cannon 560 | . 3 12 28 13 6 20 58 37 8 27 11 12 22 16 168 85 34 Launcher 26 | . . . . . . . . . . 8 5 . . . . . 13 Special 1 | . . . . . . . . . . . . . . . . . 1 Kinetic 1900 | . 14 24 56 142 166 88 372 181 40 141 44 46 23 24 438 36 65 Thermal 274 | . 8 . . . . . . . . . . 1 11 8 97 112 37 Explosive 26 | . . . . . . . . . . 8 5 . . . . . 13 Electromagnetic 170 | . . . . . . . . . . . . . 8 8 124 2 28 Robot Hit Streak 76 | . 6 6 12 23 24 11 76 45 17 69 47 46 25 28 49 34 55 Robot Miss Streak 3 | . 2 3 1 2 3 3 2 2 2 3 1 2 1 1 2 2 1 Penetration Max 2 | . . . . . . . 1 2 . 1 1 1 . 1 2 1 2 Secondary Targets 10 | . 1 . . 1 . . . . . . . . . . 8 . . Max Gunslinging Chain 1 | . 1 . . 1 . . . . . . . . . . 1 . . Shots Hit Robots 1706 | . 15 17 42 63 116 61 291 105 34 102 36 37 30 34 514 105 104 Core Hits 903 | . 4 8 20 28 44 21 122 71 16 65 42 25 23 19 259 43 93 Critical Hits 179 | . . 2 . . 1 1 20 18 4 12 4 2 2 3 82 16 12 Critical Kills 71 | . . 1 . . 1 . 7 5 . 5 3 . . 1 37 6 5 Critical Parts Destroyed 92 | . . 1 . . . 1 13 10 4 3 1 1 2 2 40 10 4 Melee Attacks 27 | . . . . . . . . . . . . . . . 24 . 3 Thermal 5 | . . . . . . . . . . . . . . . 5 . . Impact . | . . . . . . . . . . . . . . . . . . Slashing 22 | . . . . . . . . . . . . . . . 19 . 3 Piercing . | . . . . . . . . . . . . . . . . . . Sneak Attacks . | . . . . . . . . . . . . . . . . . . Combat Hostiles . | . . . . . . . . . . . . . . . . . . Follow-up Attacks 4 | . . . . . . . . . . . . . . . 4 . . Damage Inflicted 51570 | . 170 189 596 986 1951 961 6547 2826 745 4179 1507 1139 984 1032 17253 3622 6883 Guns 29168 | . 138 88 291 869 1924 850 5156 1980 521 2034 639 632 428 505 10256 1410 1447 Cannons 13983 | . 32 101 305 117 27 111 1006 658 192 648 208 507 528 527 6040 2173 803 Explosions 7333 | . . . . . . . 333 154 . 1493 660 . 28 . 234 . 4431 Melee 843 | . . . . . . . . . . . . . . . 723 . 120 Ramming 243 | . . . . . . . 52 34 32 4 . . . . . 39 82 Kinetic 32583 | . 95 189 596 986 1951 961 6162 2638 713 2682 847 1101 423 549 11044 689 957 Thermal 7819 | . 75 . . . . . 333 . . . . 38 340 318 3017 2849 849 Explosive 6584 | . . . . . . . . . . 1493 660 . . . . . 4431 Electromagnetic 3498 | . . . . . . . . 154 . . . . 221 165 2469 45 444 Impact . | . . . . . . . . . . . . . . . . . . Slashing 843 | . . . . . . . . . . . . . . . 723 . 120 Piercing . | . . . . . . . . . . . . . . . . . . Highest Corruption 12 | . . . . . 2 . 5 . 1 1 1 1 1 . 12 4 10 Average Corruption 3 | . . . . . 1 . 4 . 1 1 1 1 1 . 3 3 4 Corruption Purged . | . . . . . . . . . . . . . . . . . . Effects 141 | . . . . . 6 . 45 . 3 4 3 . . . 62 5 13 Message Errors 30 | . . . . . 2 . 12 . 1 3 . . . . 10 1 1 Matter Fused 14 | . . . . . . . 5 . . . . . . . 5 . 4 Heat Flow Errors 19 | . . . . . . . 8 . . . . . . . 9 . 2 Energy Discharges 16 | . . . . . . . 4 . . . 3 . . . 4 1 4 Data Loss (minor) 14 | . . . . . . . 4 . 2 1 . . . . 4 2 1 Data Loss (major) 3 | . . . . . . . 3 . . . . . . . . . . Misfires 2 | . . . . . . . . . . . . . . . 2 . . Alerts 1 | . . . . . . . . . . . . . . . 1 . . Targeting Errors 33 | . . . . . 3 . 8 . . . . . . . 21 . 1 Weapon Failures 9 | . . . . . 1 . 1 . . . . . . . 6 1 . Overload Shots . | . . . . . . . . . . . . . . . . . . Overflow Damage 941 | . . . . . . . 157 . . 243 . . . . 115 129 297 Projectiles 202 | . . . . . . . 4 . . . . . . . 78 120 . Explosions 716 | . . . . . . . 153 . . 243 . . . . 23 . 297 Melee 23 | . . . . . . . . . . . . . . . 14 9 . Knockbacks 95 | . 1 1 . . . 4 11 16 9 5 2 . 7 1 38 . . Impact 3 | . . . . . . . 1 1 1 . . . . . . . . Kinetic 88 | . 1 1 . . . 4 9 13 8 5 2 . 7 1 37 . . Secondary 4 | . . . . . . . 1 2 . . . . . . 1 . . Self-Inflicted Damage 306 | . . . . . . . . 16 . . . . . . . . 290 Shots 6 | . . . . . . . . 1 . . . . . . . . 5 Rammed 21 | . . . . . . . 2 4 1 1 . . . . . 1 12 Targets Rammed 25 | . . . . . . . 6 4 1 1 . . . . . 1 12 Kicked . | . . . . . . . . . . . . . . . . . . Crushed 4 | . . . . . . . 4 . . . . . . . . . . Highest Temperature 750 | . 140 41 35 20 42 172 321 501 318 750 60 24 195 195 269 443 328 Average Temperature 97 | . 62 18 13 7 11 54 83 128 131 178 22 18 107 110 98 154 120 Received Heat Transfer 4427 | . . 45 201 183 279 57 462 256 60 247 . 81 144 18 1107 54 1233 Effects 16 | . . . . . . . 1 4 1 7 . . . . . 3 . Shutdowns 5 | . . . . . . . . 1 . 2 . . . . . 2 . Energy Bleed 4 | . . . . . . . . 1 . 2 . . . . . 1 . Interference 1 | . . . . . . . . . 1 . . . . . . . . Matter Decay 1 | . . . . . . . 1 . . . . . . . . . . Short Circuit 2 | . . . . . . . . 2 . . . . . . . . . Damage (minor) 1 | . . . . . . . . . . 1 . . . . . . . Damage (core) 2 | . . . . . . . . . . 2 . . . . . . . Siege Activations 4 | . . . . . . . . . . . . . . . 4 . . Total Turns 118 | . . . . . . . . . . . . . . . 118 . . Longest Duration 45 | . . . . . . . . . . . . . . . 45 . . Robots Corrupted 1 | . . . . . . . . . . . . . . . . . 1 Combat Hostiles 1 | . . . . . . . . . . . . . . . . . 1 Parts Fried 9 | . . . . . . . . . . . . . . . 9 . . Impact Corruptions 1 | . . . . . . . . . . . . . . . . 1 . Robots Melted 2 | . . . . . . . . . . . . . . . 1 1 . Combat Hostiles 2 | . . . . . . . . . . . . . . . 1 1 . Parts Melted 8 | . . . . . . . . . . . . . . . 4 4 . Heat Transferred 7177 | . 222 . . . . . 250 . . . . 25 175 200 2555 2923 827 Parts Sabotaged 4 | . . . . . . . . . . . . . . . 4 . . Parts Stolen . | . . . . . . . . . . . . . . . . . . Parts Stripped . | . . . . . . . . . . . . . . . . . . Power Chain Reactions 3 | . . . . . . . . . . . . . 1 . 2 . . Missiles Intercepted . | . . . . . . . . . . . . . . . . . . Alert | -11 -10 -10 -9 -9 -8 -7 -6 -5 -4 -4 -4 -4 -4 -3 -3 -2 -1 ------- Run | Scr Mat Min Mat Sto Mat Fac Fac Fac Fac Ext Cet Arc Hub Res Arm Res Acc Peak Influence 1822 | . 102 148 419 474 682 536 725 570 342 273 462 274 222 253 1822 1266 1593 Initial 786 | . . 33 48 150 170 265 226 220 224 144 132 155 79 95 115 786 652 Average 609 | . 71 124 210 311 332 398 400 414 274 183 351 253 126 158 1177 1065 1125 Maximum Alert Level 5 | . . . 2 2 2 2 3 2 1 1 2 1 1 1 5 4 4 Low Security (%) 18 | 100 100 100 57 7 7 . 20 . . 53 8 12 91 91 6 . . Level 1 28 | . . . 36 81 73 49 25 48 100 46 43 87 8 8 3 . . Level 2 20 | . . . 5 11 18 50 50 51 . . 47 . . . 14 . 8 Level 3 10 | . . . . . . . 3 . . . . . . . 8 65 36 Level 4 14 | . . . . . . . . . . . . . . . 34 34 55 Level 5 6 | . . . . . . . . . . . . . . . 33 . . High Security . | . . . . . . . . . . . . . . . . . . Max Security . | . . . . . . . . . . . . . . . . . . Squads Dispatched 53 | . . . 2 1 3 . 8 2 1 1 . . 2 . 16 5 12 Investigation 4 | . . . 1 . . . . . . 1 . . . . . 1 1 Extermination 14 | . . . . . . . 4 1 . . . . 1 . 4 2 2 Reinforcement 13 | . . . 1 1 3 . 3 1 . . . . 1 . 2 1 . Assault 15 | . . . . . . . 1 . . . . . . . 10 1 3 Garrison 7 | . . . . . . . . . 1 . . . . . . . 6 Intercept . | . . . . . . . . . . . . . . . . . . Construction Impeded 2 | . . . . . . . 1 . . . . . . . . 1 . Haulers Reinforced 1 | . . . . . . . 1 . . . . . . . . . . Stealth | -11 -10 -10 -9 -9 -8 -7 -6 -5 -4 -4 -4 -4 -4 -3 -3 -2 -1 --------- Run | Scr Mat Min Mat Sto Mat Fac Fac Fac Fac Ext Cet Arc Hub Res Arm Res Acc Distress Signals 19 | . 1 . 1 1 3 . . 1 2 1 2 . 1 . 4 . 2 Communications Jammed 18 | . . . . . 18 . . . . . . . . . . . . Distress Signals 18 | . . . . . 18 . . . . . . . . . . . . Times Spotted 445 | . 5 4 13 19 31 11 50 33 6 22 9 10 10 4 122 25 71 Peak Tracking Total 15 | . 4 3 4 5 6 4 6 6 3 6 5 2 3 2 10 4 15 Tactical Retreats 32 | . . 1 1 1 3 2 5 6 . . . . . . 2 2 9 Traps | -11 -10 -10 -9 -9 -8 -7 -6 -5 -4 -4 -4 -4 -4 -3 -3 -2 -1 ------- Run | Scr Mat Min Mat Sto Mat Fac Fac Fac Fac Ext Cet Arc Hub Res Arm Res Acc Traps Triggered 9 | . . . 1 . 2 . 1 . . 1 . . 1 . 2 1 . Indirectly . | . . . . . . . . . . . . . . . . . . Trap Hack Attempts . | . . . . . . . . . . . . . . . . . . Triggered . | . . . . . . . . . . . . . . . . . . Disarmed . | . . . . . . . . . . . . . . . . . . Reprogrammed . | . . . . . . . . . . . . . . . . . . Reused . | . . . . . . . . . . . . . . . . . . Traps Extracted . | . . . . . . . . . . . . . . . . . . Installed . | . . . . . . . . . . . . . . . . . . Triggered 1 | . . . . . . . . . . . . . . . 1 . . Machines | -11 -10 -10 -9 -9 -8 -7 -6 -5 -4 -4 -4 -4 -4 -3 -3 -2 -1 ---------- Run | Scr Mat Min Mat Sto Mat Fac Fac Fac Fac Ext Cet Arc Hub Res Arm Res Acc Machines Disabled 35 | . . . 1 1 3 . 3 3 . . . 3 4 1 13 . 3 Max in Single Turn 2 | . . . 1 1 1 . 2 1 . . . 1 2 1 1 . 1 Garrison Access 1 | . . . . . . . . . . . . . . . . 1 . Machines Sabotaged . | . . . . . . . . . . . . . . . . . . Garrisons Compromised . | . . . . . . . . . . . . . . . . . . Overloaded Fab Kills . | . . . . . . . . . . . . . . . . . . Fab Network Shutdowns . | . . . . . . . . . . . . . . . . . . Hacking | -11 -10 -10 -9 -9 -8 -7 -6 -5 -4 -4 -4 -4 -4 -3 -3 -2 -1 --------- Run | Scr Mat Min Mat Sto Mat Fac Fac Fac Fac Ext Cet Arc Hub Res Arm Res Acc Machines Accessed 38 | . 1 . . 3 1 1 5 . 4 6 3 1 2 . 5 1 5 Terminals 32 | . 1 . . 3 1 1 3 . 3 5 3 . 2 . 5 . 5 Fabricators 1 | . . . . . . . 1 . . . . . . . . . . Repair Stations 2 | . . . . . . . . . 1 1 . . . . . . . Recycling Units 1 | . . . . . . . 1 . . . . . . . . . . Scanalyzers . | . . . . . . . . . . . . . . . . . . Garrison Access 1 | . . . . . . . . . . . . . . . . 1 . Total Hacks 104 | . 2 . . 6 6 3 12 . 6 13 6 25 2 . 11 2 10 Successful 65 | . 1 . . 3 5 . 6 . 4 9 4 25 . . 3 1 4 Failed 39 | . 1 . . 3 1 3 6 . 2 4 2 . 2 . 8 1 6 Catastrophic 4 | . 1 . . . . 1 . . . . 1 . . . 1 . . Database Lockouts . | . . . . . . . . . . . . . . . . . . Manual 6 | . 2 . . . . . . . . . 1 . . . 2 1 . Terminals 70 | . 2 . . 6 6 3 8 . 5 11 6 . 2 . 11 . 10 Fabricators 1 | . . . . . . . 1 . . . . . . . . . . Repair Stations 3 | . . . . . . . . . 1 2 . . . . . . . Recycling Units 3 | . . . . . . . 3 . . . . . . . . . . Scanalyzers . | . . . . . . . . . . . . . . . . . . Garrison Access 2 | . . . . . . . . . . . . . . . . 2 . Terminal Hacks 60 | . 1 . . 3 5 . 4 . 4 7 4 25 . . 3 . 4 Record 40 | . . . . 1 3 . 2 . 2 . 4 25 . . 2 . 1 Open Door 7 | . . . . 1 . . . . 1 3 . . . . . . 2 Branch Access Points 4 | . . . . 1 . . 1 . 1 1 . . . . . . . Alert Level 5 | . . . . . 1 . 1 . . 1 . . . . 1 . 1 Locate Traps 1 | . 1 . . . . . . . . . . . . . . . . Dispatch Records 2 | . . . . . 1 . . . . 1 . . . . . . . Zone Layout 1 | . . . . . . . . . . 1 . . . . . . . Fabricator Hacks 1 | . . . . . . . 1 . . . . . . . . . . Network Status 1 | . . . . . . . 1 . . . . . . . . . . Repair Station Hacks 2 | . . . . . . . . . . 2 . . . . . . . Scan Component 1 | . . . . . . . . . . 1 . . . . . . . Repair 1 | . . . . . . . . . . 1 . . . . . . . Recycling Unit Hacks 1 | . . . . . . . 1 . . . . . . . . . . Retrieve Matter 1 | . . . . . . . 1 . . . . . . . . . . Scanalyzer . | . . . . . . . . . . . . . . . . . . Garrison Access Hacks . | . . . . . . . . . . . . . . . . . . Unauthorized Hacks 1 | . . . . . . . . . . . . . . . . 1 . Terminals . | . . . . . . . . . . . . . . . . . . Fabricators . | . . . . . . . . . . . . . . . . . . Repair Stations . | . . . . . . . . . . . . . . . . . . Recycling Units . | . . . . . . . . . . . . . . . . . . Scanalyzers . | . . . . . . . . . . . . . . . . . . Garrison Access 1 | . . . . . . . . . . . . . . . . 1 . Jam 1 | . . . . . . . . . . . . . . . . 1 . Data Cores Recovered 1 | . . . . . . . . 1 . . . . . . . . . Used . | . . . . . . . . . . . . . . . . . . Hacking Detections 34 | . 2 . . 2 1 1 4 . 4 5 3 . 2 . 5 1 4 Full Trace Events 2 | . . . . 1 . . . . . . . . . . . . 1 Feedback Events . | . . . . . . . . . . . . . . . . . . Feedback Blocked . | . . . . . . . . . . . . . . . . . . Robot Schematics Acquired . | . . . . . . . . . . . . . . . . . . Robots Built . | . . . . . . . . . . . . . . . . . . Matter . | . . . . . . . . . . . . . . . . . . Time . | . . . . . . . . . . . . . . . . . . Total Robot Build Rating . | . . . . . . . . . . . . . . . . . . Part Schematics Acquired . | . . . . . . . . . . . . . . . . . . Parts Built . | . . . . . . . . . . . . . . . . . . Matter . | . . . . . . . . . . . . . . . . . . Time . | . . . . . . . . . . . . . . . . . . Total Part Build Rating . | . . . . . . . . . . . . . . . . . . Parts Repaired 1 | . . . . . . . . . . 1 . . . . . . . Time 19 | . . . . . . . . . . 19 . . . . . . . Parts Recycled . | . . . . . . . . . . . . . . . . . . Recycled Matter . | . . . . . . . . . . . . . . . . . . Retrieved Matter . | . . . . . . . . . . . . . . . . . . Retrieved Components . | . . . . . . . . . . . . . . . . . . Parts Scanalyzed . | . . . . . . . . . . . . . . . . . . Part Schematics Acquired . | . . . . . . . . . . . . . . . . . . Parts Damaged . | . . . . . . . . . . . . . . . . . . Bothacking | -11 -10 -10 -9 -9 -8 -7 -6 -5 -4 -4 -4 -4 -4 -3 -3 -2 -1 ------------ Run | Scr Mat Min Mat Sto Mat Fac Fac Fac Fac Ext Cet Arc Hub Res Arm Res Acc Used RIF Installer . | . . . . . . . . . . . . . . . . . . Robots Hacked . | . . . . . . . . . . . . . . . . . . Non-combat . | . . . . . . . . . . . . . . . . . . Combat . | . . . . . . . . . . . . . . . . . . Robot Hacks Applied . | . . . . . . . . . . . . . . . . . . Relay Couplers Released 4 | . . . . . . . 4 . . . . . . . . . . Programmers 4 | . . . . . . . 4 . . . . . . . . . . Robots Rewired 6 | . . . . . . . . . . 3 . . . . 3 . . Allies Hacked . | . . . . . . . . . . . . . . . . . . Hacks Repelled . | . . . . . . . . . . . . . . . . . . Allies | -11 -10 -10 -9 -9 -8 -7 -6 -5 -4 -4 -4 -4 -4 -3 -3 -2 -1 -------- Run | Scr Mat Min Mat Sto Mat Fac Fac Fac Fac Ext Cet Arc Hub Res Arm Res Acc Total Allies 10 | . . . . . . . . . . 7 . . . . 3 . . Largest Group 6 | . . . . . . . . . . 6 . . . . 3 . . Highest-Rated Group 234 | . . . . . . . . . . 234 . . . . 126 . . Highest-Rated Ally 49 | . . . . . . . . . . 49 . . . . 42 . . Total Orders 1 | . . . . . . . . . . 1 . . . . . . . AID 1 | . . . . . . . . . . 1 . . . . . . . Ally Attacks 63 | . . . . . . . . . . 50 . . . . 13 . . Total Damage 1672 | . . . . . . . . . . 1357 . . . . 315 . . Kills 8 | . . . . . . . . . . 7 . . . . 1 . . Allies Corrupted . | . . . . . . . . . . . . . . . . . . Allies Melted . | . . . . . . . . . . . . . . . . . . Intel | -11 -10 -10 -9 -9 -8 -7 -6 -5 -4 -4 -4 -4 -4 -3 -3 -2 -1 ------- Run | Scr Mat Min Mat Sto Mat Fac Fac Fac Fac Ext Cet Arc Hub Res Arm Res Acc Robot Analysis Total . | . . . . . . . . . . . . . . . . . . Derelict Logs Recovered 1 | . . 1 . . . . . . . . . . . . . . . Drone Launches . | . . . . . . . . . . . . . . . . . . Drone Recoveries . | . . . . . . . . . . . . . . . . . . Exploration | -11 -10 -10 -9 -9 -8 -7 -6 -5 -4 -4 -4 -4 -4 -3 -3 -2 -1 ------------- Run | Scr Mat Min Mat Sto Mat Fac Fac Fac Fac Ext Cet Arc Hub Res Arm Res Acc Turns Passed 13231 | 55 165 127 241 608 697 388 2262 1051 375 1159 311 327 308 360 2565 1027 1205 Spaces Moved 6574 | 40 103 65 113 269 272 203 963 519 215 574 160 169 155 181 1160 524 889 Core 162 | 9 . . . . . . . . . 2 . . . . . . 151 Treads 4918 | . . . . . . 18 812 519 215 572 160 169 155 181 1160 524 433 Legs 1189 | 31 103 65 113 269 272 185 151 . . . . . . . . . . Wheels . | . . . . . . . . . . . . . . . . . . Hover 305 | . . . . . . . . . . . . . . . . . 305 Flight . | . . . . . . . . . . . . . . . . . . Fastest Speed 50 | 50 120 120 120 120 120 120 125 161 161 162 167 165 158 163 145 153 50 Average Speed 146 | 104 120 120 120 120 120 133 161 165 161 168 167 168 167 164 151 153 108 Slowest Speed 1550 | 120 120 120 120 120 150 155 210 166 162 1550 167 186 183 173 173 153 170 Overloaded Moves . | . . . . . . . . . . . . . . . . . . Propulsion Burnouts . | . . . . . . . . . . . . . . . . . . Robots Hopped . | . . . . . . . . . . . . . . . . . . Cave-ins Triggered . | . . . . . . . . . . . . . . . . . . Exploration Rate (%) 31 | 3 24 15 16 43 36 6 36 16 8 66 67 98 20 5 68 14 30 Regions Visited 17 Branch Regions 7 Pre-discovered Areas . | . . . . . . . . . . . . . . . . . . Known Exits Taken 3 | . . . . 1 . . . . 1 1 . . . . . . . Unknown Exits Taken 14 | 1 1 1 1 . 1 1 1 1 . . 1 1 1 1 1 1 . Scrap Searched . | . . . . . . . . . . . . . . . . . . Spaces Dug 3 | . . . . . . . 2 1 . . . . . . . . . Terrain Destroyed 612 | . . . . . 8 1 21 1 . 71 123 1 5 . 174 45 162 Melee . | . . . . . . . . . . . . . . . . . . Projectile 223 | . . . . . 8 1 9 1 . 11 . 1 2 . 140 45 5 AOE 389 | . . . . . . . 12 . . 60 123 . 3 . 34 . 157 Terrain Rammed . | . . . . . . . . . . . . . . . . . . Walls Destroyed . | . . . . . . . . . . . . . . . . . . Machines Disabled . | . . . . . . . . . . . . . . . . . . Actions | -11 -10 -10 -9 -9 -8 -7 -6 -5 -4 -4 -4 -4 -4 -3 -3 -2 -1 --------- Run | Scr Mat Min Mat Sto Mat Fac Fac Fac Fac Ext Cet Arc Hub Res Arm Res Acc Total 8814 | 52 125 92 167 417 532 277 1489 611 227 702 183 190 182 232 1634 661 1041 Wait 941 | 1 2 12 1 52 165 11 377 20 2 40 . . 2 1 162 52 41 Move 6557 | 39 102 64 112 268 271 202 962 518 214 573 159 168 154 180 1159 523 889 Hop . | . . . . . . . . . . . . . . . . . . Pick Up 193 | 6 6 2 6 6 10 16 17 11 . 9 6 4 4 12 42 16 20 Fast Attach 40 | 2 . . 1 . 3 2 4 . . . . . 6 3 7 5 7 Attach 116 | 4 1 . 1 . 3 7 7 5 2 7 5 4 . 5 34 6 25 Detach 6 | . . . . . . . 2 . . . . . . 1 2 . 1 Swap 84 | . 1 1 8 10 9 4 15 8 . 4 1 . 1 6 9 6 1 Drop 159 | . 2 1 10 10 15 13 24 8 . 2 1 1 4 16 27 16 9 Fire 625 | . 11 12 28 71 56 22 75 37 8 34 11 13 11 8 159 36 33 Melee 22 | . . . . . . . . . . . . . . . 19 . 3 Ram 8 | . . . . . . . . . . . . . . . . . 8 Kick . | . . . . . . . . . . . . . . . . . . Crush 17 | . . . . . . . 6 4 1 1 . . . . . 1 4 Escape Stasis . | . . . . . . . . . . . . . . . . . . Rewire 46 | . . . . . . . . . . 32 . . . . 14 . . Trap . | . . . . . . . . . . . . . . . . . . Miscellaneous . | . . . . . . . . . . . . . . . . . . Route ------- -11/Scrapyard -10/Materials -10/Mines -9/Materials (discovered 2 exits: Mat / *Sto) -9/Storage (discovered 2 exits: *Mat / Rec) -8/Materials -7/Factory -6/Factory (discovered 3 exits: [*Fac] / *Low x2) -5/Factory -4/Factory (discovered 4 exits: Upp x2 / *Ext x2) -4/Extension (discovered 2 exits: [*Res] / *Cet) -4/Cetus -4/Archives (discovered 3 exits: [*Res] / *Hub x2) -4/Hub_04(d) -3/Research -3/Armory -2/Research -1/Access History --------- Turn | Location | Event 5 | -11/Scrapyard | Discovered new exit (range 16) 56 | -11/Scrapyard | Entered Materials 177 | -10/Materials | Discovered new exit (range 8) 221 | -10/Materials | Entered Mines 269 | -10/Mines | Discovered new exit (range 10) 301 | -10/Mines | Build established: Mutant 314 | -10/Mines | Learned location of 1 exit from Materials 348 | -10/Mines | Entered Materials 348 | -9/Materials | Evolved 2 slots: Propulsion x1, Utility x1 349 | -9/Materials | Identified exit to Materials 528 | -9/Materials | Discovered new exit (range 15) 589 | -9/Materials | Entered Storage 716 | -9/Storage | Build established: Scavenger-Mutant 894 | -9/Storage | Identified exit to Recycling 1175 | -9/Storage | Discovered exit to Materials (range 15) 1197 | -9/Storage | Entered Materials 1197 | -8/Materials | Evolved 2 slots: Utility x1, Weapon x1 1522 | -8/Materials | Build established: Scavenger-Tank 1784 | -8/Materials | Discovered new exit (range 15) 1894 | -8/Materials | Entered Factory 1894 | -7/Factory | Evolved 2 slots: Propulsion x1, Weapon x1 2239 | -7/Factory | Discovered new exit (range 2) 2282 | -7/Factory | Entered another Factory area 2282 | -6/Factory | Evolved 2 slots: Utility x1, Weapon x1 2731 | -6/Factory | Build established: Gunner 2882 | -6/Factory | Identified exit to Lower Caves 3332 | -6/Factory | First assault squad dispatched 4130 | -6/Factory | Spotted B-75 Beast 4163 | -6/Factory | Destroyed B-75 Beast 4508 | -6/Factory | Discovered new exit (range 16) 4544 | -6/Factory | Entered another Factory area 4544 | -5/Factory | Evolved 2 slots: Propulsion x1, Utility x1 5575 | -5/Factory | Discovered new exit (range 7) 5595 | -5/Factory | Entered another Factory area 5595 | -4/Factory | Evolved 2 slots: Propulsion x1, Utility x1 5850 | -4/Factory | Garrison activated, responded to threat 5901 | -4/Factory | Identified exit to Upper Caves 5901 | -4/Factory | Identified exit to Extension 5970 | -4/Factory | Entered Extension 6563 | -4/Extension | Rescued a captive Derelict 6564 | -4/Extension | Rescued a captive Derelict 6589 | -4/Extension | Rescued a captive Derelict 6627 | -4/Extension | Identified exit to Cetus 6650 | -4/Extension | Repaired Arm. Treads 6712 | -4/Extension | Build established: Scavenger-Gunner 6714 | -4/Extension | Rescued a captive Derelict 6721 | -4/Extension | Spotted B-86 Titan 6729 | -4/Extension | Spotted B-86 Titan 6777 | -4/Extension | Destroyed B-86 Titan 6790 | -4/Extension | Allies destroyed B-86 Titan 6820 | -4/Extension | Disrupted transfer network 6835 | -4/Extension | Lost 8 parts (2n2u4w) 6986 | -4/Extension | Discovered new exit (range 15) 7129 | -4/Extension | Entered Cetus 7150 | -4/Cetus | Spotted Cetus Guard 7150 | -4/Cetus | Spotted Cetus Guard 7153 | -4/Cetus | Spotted Cetus Guard 7156 | -4/Cetus | Destroyed Cetus Guard 7156 | -4/Cetus | Spotted Cetus Guard 7159 | -4/Cetus | Destroyed Cetus Guard 7165 | -4/Cetus | Destroyed Cetus Guard 7168 | -4/Cetus | Destroyed Cetus Guard 7368 | -4/Cetus | Discovered new exit (range 16) 7440 | -4/Cetus | Entered Archives 7525 | -4/Archives | Unable to access archive contents 7561 | -4/Archives | Discovered new exit (range 16) 7562 | -4/Archives | Lost 5 parts (2n3w) 7582 | -4/Archives | Unable to access archive contents 7600 | -4/Archives | Unable to access archive contents 7604 | -4/Archives | Discovered new exit (range 15) 7617 | -4/Archives | Unable to access archive contents 7675 | -4/Archives | Discovered new exit (range 15) 7767 | -4/Archives | Entered Hub_04(d) 7969 | -4/Hub_04(d) | Core integrity fell below 50% 8033 | -4/Hub_04(d) | Discovered new exit (range 16) 8075 | -4/Hub_04(d) | Entered Research 8075 | -3/Research | Evolved 2 slots: Power x1, Utility x1 8401 | -3/Research | Discovered new exit (range 4) 8435 | -3/Research | Entered Armory 8611 | -3/Armory | Build established: Gunner 8689 | -3/Armory | Destroyed 7 combat bots 9059 | -3/Armory | Destroyed 7 combat bots 9185 | -3/Armory | First assault squad dispatched 9325 | -3/Armory | Destroyed 7 combat bots 9828 | -3/Armory | Destroyed 9 combat bots 10737 | -3/Armory | Spotted B-86 Titan 10786 | -3/Armory | System corruption reached 10% 10797 | -3/Armory | Destroyed B-86 Titan 10826 | -3/Armory | Destroyed 7 combat bots 10834 | -3/Armory | Lost 11 parts (1p3n2u5w) 10935 | -3/Armory | Lost 4 parts (2p1u1w) 10994 | -3/Armory | Discovered new exit (range 3) 11000 | -3/Armory | Entered Research 11000 | -2/Research | Evolved 2 slots: Power x1, Utility x1 11206 | -2/Research | Build established: Scavenger-Gunner 11353 | -2/Research | Found Fusion Bomb Launcher 11356 | -2/Research | Found Fusion Bomb Launcher 11369 | -2/Research | Found Fusion Bomb Launcher 11680 | -2/Research | Found Hvy. Insulated Plating 11890 | -2/Research | Spotted B-90 Cyclops 12000 | -2/Research | First assault squad dispatched 12008 | -2/Research | Discovered new exit (range 5) 12027 | -2/Research | Entered Access 12027 | -1/Access | Evolved 2 slots: Utility x1, Weapon x1 12277 | -1/Access | First assault squad dispatched 12352 | -1/Access | Garrison activated, responded to threat 12690 | -1/Access | Garrison activated, responded to threat 12711 | -1/Access | Build established: Scavenger-Executioner 12770 | -1/Access | Lost 5 parts (1p2u2w) 12816 | -1/Access | Destroyed 9 combat bots 12903 | -1/Access | Lost 20 parts (3p5n4u8w) 13087 | -1/Access | Build established: Mutant 13090 | -1/Access | Core integrity fell below 50% 13094 | -1/Access | Lost 7 parts (2p1n1u3w) 13219 | -1/Access | System corruption reached 10% 13226 | -1/Access | Core integrity fell below 20% 13232 | -1/Access | Destroyed by H-88 Terminator with KE Penetrator Last Messages --------------- 13213_ E-15 Imp destroyed. 13213_ Slug penetrates Wall. 13218_ Dropped Biometal Heavy Treads. 13219_ Dropped Adv. Heavy Treads. 13219_ Slug penetrates Wall. 13223_ Slammed into G-73 Enforcer. 13224_ Slug penetrates Wall. 13225_ Penetrated by Slug. 13226_ Slug penetrates Wall. 13227_ K-01 Serf cleans the Terminal. 13229_ Penetrated by Slug. 13229_ Slug penetrates Wall. 13229_ Slug penetrates R-10 Processor. 13229_ R-10 Processor suffers critical hit. 13229_ Penetrated by Slug. 13229_ R-10 Processor destroyed. 13230_ K-01 Serf cleans the Terminal. 13232_ Penetrated by Slug. [Achievement: This Is Interesting...] [Achievement: Punisher] Map ----- +----------------------------------------------------+ | ?????????????????????????????????????????????????? | | ?????????????????????????????????????????????????? | | ?????????????????????????????????????????????????? | | ?????????????????????????????????????????????????? | | ?????????????????????????????????????????????????? | | #???##########??##???????????????????????????????? | | ???# """S""" #???????????????????????????????? | | ??# """ """ #???????????????????????????????? | | """ # #???????????????????????????????? | | """"# #???????????????????????????????? | | "F""# #???????????????????????????????? | | ""#! ! " #???????????????????????????????? | | """# """ #???????????????????????????????? | | "" # """#???????????????????????????????? | | # " #???????????????????????????????? | | # #???????????????????????????????? | | # #???????????????????????????????? | | # #???????????????????????????????? | | /####+########+####################/#????????????? | | h ????????????? | | " != h ?????????????? | | ##############/#####%= k""#??????????????????? | | ????# % #?#== ""#??????????????????? | | ????# !! #?# ""#??????????????????? | | ????# ! #?# T#??????????????????? | | ????# #?# @ ""#??????????????????? | | ????# #?# ""#??????????????????? | | ????# ==*#?# ""#??????????????????? | | ????# !%#?""""""""""""??????????????????? | | ????# /=#???????????????????????????????? | | ????# #???????????????????????????????? | | ????# #???????????????????????????????? | | ????# #???????????????????????????????? | | ????# #???????????????????????????????? | | ????##############???????????????????????????????? | | ?????????????????????????????????????????????????? | | ?????????????????????????????????????????????????? | | ?????????????????????????????????????????????????? | | ?????????????????????????????????????????????????? | | ?????????????????????????????????????????????????? | | ?????????????????????????????????????????????????? | | ?????????????????????????????????????????????????? | | ?????????????????????????????????????????????????? | | ?????????????????????????????????????????????????? | | ?????????????????????????????????????????????????? | | ?????????????????????????????????????????????????? | | ?????????????????????????????????????????????????? | | ?????????????????????????????????????????????????? | | ?????????????????????????????????????????????????? | | ?????????????????????????????????????????????????? | +----------------------------------------------------+ Best States ------------- Heat Dissipation 118 Coolant Potential 100 Energy Generation 56 Energy Capacity 550 Matter Stores 305 Matter Capacity 500 Sight Range 16 Terrain Scan Density 10 Jamming Range 8 Base Temperature (-) 200 EM Shielding 2 Corruption Prevention 20 Armor Coverage 1200 Resistance: KI 45 Resistance: TH 20 Resistance: EX 20 Resistance: EM 50 Resistance: I 20 Resistance: S 20 Resistance: P 20 Core Shielding 30 Weapon Shielding 66 Weapon Cycling 25 Evasion (%) 51 Targeting Accuracy 8 Target Analysis 8 Core Analysis 10 Recoil Reduction 6 Salvage Targeting 2 Offensive Hacking 10 Item Schematics ----------------- None Robot Schematics ------------------ None Fabricated ------------ Nothing Alien Tech Used ----------------- None Achievements -------------- Punisher This Is Interesting... Challenges ------------ None Game ------ Seed GatlingWeldingDisintegrator Manual? 0 Play Time 03:10:12 Cumulative 42.3 hours Start 2021.07.01 @ 11:14:13 End 2021.07.01 @ 18:52:39 Sessions 5 Manual Loads 0 Difficulty Adventurer Special Mode None Game No. 43 Rogue 23 Adventurer 20 Explorer 0 Win Type - Total 0 Types 0/0/0/0/0/0/0/0/0 Lore% 25 Gallery% 47 Achievement% 37 Wizard Run 0 Options --------- ASCII 0 Keyboard 0 Movement Mouse Keybinds 0 Fullscreen 0 Font 16/SmallcapsGlow Map View 76x50 Tactical HUD 1 Map Filters NONE Filters NONE Steam 1 RUN: 788d1fb6-610f-4432-aabd-f99175533105